bitfinex/quotes_BTCUSD_20250211
["timestamp","ask_amount","ask_price","bid_price","bid_amount"]
[1739293161409,0.002,96481.0,96451.0,0.27788143]
[1739293161652,0.155485,96472.0,96465.0,0.155496]
[1739293162179,0.002,96481.0,96455.0,0.20735]
[1739293162383,0.155484,96473.0,96465.0,0.155496]
[1739293162625,0.002,96481.0,96456.0,0.13485156]
[1739293162626,0.002,96481.0,96462.0,0.207333]
[1739293162745,0.155477,96478.0,96456.0,0.10250365]
[1739293162947,0.00013356,96484.0,96468.0,0.155491]
[1739293163152,0.155481,96475.0,96467.0,0.155492]
[1739293163360,0.001,96480.0,96456.0,0.10250365]
[1739293163561,0.156472,96480.0,96473.0,0.155483]
[1739293163764,0.00013356,96484.0,96483.0,0.155467]
[1739293163963,0.00013356,96484.0,96483.0,0.10250365]
[1739293164244,0.00013356,96484.0,96475.0,0.00055534]
[1739293164245,0.0793,96483.0,96456.0,0.001]
[1739293164365,0.0494,96480.0,96460.0,0.02127788]
[1739293164571,0.0494,96480.0,96465.0,0.002]
[1739293164820,0.0494,96480.0,96461.0,0.13484822]
[1739293164821,0.155475,96479.0,96472.0,0.155485]
[1739293165133,0.155476,96478.0,96471.0,0.155486]
[1739293165344,0.01,96474.0,96461.0,0.10250365]
[1739293165637,0.01,96474.0,96465.0,0.207327]
[1739293165840,0.01,96474.0,96473.0,0.155483]
[1739293167234,0.01,96474.0,96471.0,0.207314]
[1739293167426,0.01,96474.0,96473.0,0.155483]
[1739293167807,0.011,96474.0,96473.0,0.158483]
[1739293167942,0.011,96474.0,96473.0,0.162483]
[1739293168338,0.011,96474.0,96473.0,0.158483]
[1739293168570,0.011,96474.0,96473.0,0.162483]
[1739293170770,0.011,96474.0,96473.0,0.007]
[1739293170964,0.166482,96474.0,96473.0,0.007]
[1739293171193,0.011,96474.0,96473.0,0.007]
[1739293171365,0.166482,96474.0,96473.0,0.007]
[1739293171528,0.165482,96474.0,96473.0,0.004]
[1739293171941,0.155494,96467.0,96455.0,0.02100482]
[1739293172144,0.165482,96474.0,96473.0,0.002]
[1739293172510,0.047,96466.0,96441.0,0.2781055]
[1739293172779,0.155498,96465.0,96456.0,0.155511]
[1739293172995,0.047,96466.0,96453.0,0.207352]
[1739293173350,0.155496,96465.0,96447.0,0.155525]
[1739293173556,0.048,96466.0,96459.0,0.155506]
[1739293173764,0.001,96466.0,96460.0,0.155504]
[1739293173997,0.001,96466.0,96451.0,0.207359]
[1739293174197,0.0001066,96476.0,96473.0,0.155483]
[1739293175429,0.0001066,96476.0,96473.0,0.157483]
[1739293175755,0.0001066,96476.0,96473.0,0.155483]
[1739293176924,0.011,96474.0,96473.0,0.158483]
[1739293177139,0.011,96474.0,96473.0,0.19081708]
[1739293177404,0.011,96474.0,96473.0,0.21613773]
[1739293177584,0.011,96474.0,96473.0,0.19281708]
[1739293177752,0.001,96474.0,96473.0,0.19281708]
[1739293177969,0.001,96474.0,96473.0,0.160483]
[1739293179095,0.001,96474.0,96473.0,0.19281697]
[1739293179342,0.001,96474.0,96473.0,0.160483]
[1739293179985,0.001,96474.0,96473.0,0.19281955]
[1739293180587,0.001,96474.0,96473.0,0.160483]
[1739293181132,0.001,96474.0,96473.0,0.19282461]
[1739293181341,0.0011066,96474.0,96473.0,0.19282461]
[1739293181551,0.0011066,96474.0,96473.0,0.39662826]
[1739293182367,0.0011066,96474.0,96473.0,0.23814526]
[1739293182579,0.0001066,96474.0,96473.0,0.39362826]
[1739293183000,0.0011066,96474.0,96473.0,0.39462826]
[1739293183424,0.0001066,96474.0,96473.0,0.39162826]
[1739293183676,0.0011066,96474.0,96473.0,0.31632826]
[1739293183888,0.0011066,96474.0,96473.0,0.19082461]
[1739293184351,0.0021066,96474.0,96473.0,0.19582461]
[1739293184561,0.0011066,96474.0,96473.0,0.19082461]
[1739293185069,0.0001066,96476.0,96475.0,0.15548]
[1739293185294,0.0001066,96476.0,96475.0,0.18783073]
[1739293185788,0.0001066,96476.0,96475.0,0.31333438]
[1739293186497,0.0011066,96476.0,96475.0,0.32633438]
[1739293186751,0.0011066,96476.0,96475.0,0.37283438]
[1739293187181,0.0011066,96476.0,96475.0,0.32633438]
[1739293187878,0.0021066,96476.0,96475.0,0.33133438]
[1739293190871,0.0021066,96476.0,96475.0,0.56273438]
[1739293191483,0.00013356,96484.0,96476.0,0.173]
[1739293191711,0.00013356,96484.0,96483.0,0.178467]
[1739293192003,0.00013356,96484.0,96483.0,0.31332138]
[1739293192659,0.00113356,96484.0,96483.0,0.31332138]
[1739293194172,0.00013356,96484.0,96483.0,0.31332138]
[1739293194637,0.00113356,96484.0,96483.0,0.32732138]
[1739293195242,0.00013356,96484.0,96483.0,0.32613688]
[1739293195650,0.00113356,96484.0,96483.0,0.34013688]
[1739293195856,0.00113356,96484.0,96483.0,0.33513688]
[1739293196043,0.00024016,96484.0,96483.0,0.32613688]
[1739293196244,0.00124016,96484.0,96483.0,0.33313688]
[1739293196911,0.00124016,96484.0,96483.0,0.35400873]
[1739293197606,0.00224016,96484.0,96483.0,0.36400873]
[1739293199452,0.00207469,96484.0,96483.0,0.36400873]
[1739293200469,0.00207469,96484.0,96483.0,0.41310873]
[1739293201078,0.0777,96512.0,96483.0,0.41310873]
[1739293201079,0.0777,96512.0,96509.0,0.155425]
[1739293201304,0.00055171,96510.0,96509.0,0.155425]
[1739293202313,0.00155171,96510.0,96509.0,0.001]
[1739293202540,0.00155171,96510.0,96509.0,0.156425]
[1739293203768,0.07925171,96510.0,96509.0,0.001]
[1739293203993,0.27977571,96510.0,96509.0,0.001]
[1739293204167,0.53227936,96510.0,96509.0,0.001]
[1739293204394,0.278274,96479.0,96478.0,0.08270615]
[1739293204968,0.15548,96475.0,96467.0,0.08270615]
[1739293205172,0.1228,96479.0,96468.0,0.00055591]
[1739293205374,0.155479,96477.0,96462.0,0.207333]
[1739293205555,0.0777,96479.0,96464.0,0.207329]
[1739293205754,0.155475,96478.0,96474.0,0.01925082]
[1739293205959,0.15548,96475.0,96474.0,0.01925082]
[1739293207133,0.285,96479.0,96474.0,0.01925082]
[1739293207134,0.0777,96479.0,96474.0,0.01925082]
[1739293207315,0.0777,96488.0,96459.0,0.023]
[1739293207517,0.00013354,96488.0,96487.0,0.155461]
[1739293210673,0.00013354,96488.0,96485.0,0.207284]
[1739293210674,0.00013354,96488.0,96475.0,0.10250365]
[1739293210899,0.00013354,96488.0,96476.0,0.03230892]
[1739293211100,0.15547,96482.0,96476.0,0.18778692]
[1739293211304,0.00013354,96488.0,96453.0,0.20757786]
[1739293211305,0.207283,96486.0,96453.0,0.20757786]
[1739293211422,0.155471,96481.0,96475.0,0.15548]
[1739293211617,0.155469,96482.0,96475.0,0.15548]
[1739293211830,0.0451,96485.0,96462.0,0.02040025]
[1739293212044,0.0777,96484.0,96463.0,0.023]
[1739293212285,0.155472,96480.0,96463.0,0.023]
[1739293212454,0.15548,96475.0,96474.0,0.00122386]
[1739293212653,0.15548,96475.0,96474.0,0.00022386]
[1739293213747,0.207304,96477.0,96474.0,0.00022386]
[1739293213748,0.155477,96477.0,96474.0,0.00022386]
[1739293214180,0.207297,96480.0,96474.0,0.00022386]
[1739293214181,0.001,96480.0,96474.0,0.00022386]
[1739293214409,0.156473,96480.0,96474.0,0.00022386]
[1739293214653,0.00013354,96488.0,96474.0,0.00022386]
[1739293214654,0.284989,96484.0,96474.0,0.00022386]
[1739293214878,0.207291,96483.0,96474.0,0.00022386]
[1739293215084,0.0777,96484.0,96474.0,0.00222386]
[1739293215294,0.0777,96475.0,96453.0,7.2e-07]
[1739293215546,0.237414,96454.0,96453.0,7.2e-07]
[1739293215748,0.0819,96454.0,96453.0,7.2e-07]
[1739293216305,0.0819,96471.0,96453.0,7.2e-07]
[1739293216664,0.00129585,96470.0,96453.0,7.2e-07]
[1739293216875,0.10250365,96469.0,96453.0,7.2e-07]
[1739293217090,0.155514,96454.0,96453.0,7.2e-07]
[1739293217408,0.0819,96468.0,96428.0,0.023]
[1739293217550,0.207348,96456.0,96446.0,0.155526]
[1739293217751,0.155509,96458.0,96448.0,0.155523]
[1739293217952,0.15551,96457.0,96448.0,0.155523]
[1739293218565,0.15551,96457.0,96436.0,0.207391]
[1739293218566,0.155514,96454.0,96445.0,0.155527]
[1739293218764,0.207335,96462.0,96434.0,0.20752644]
[1739293219083,0.155518,96452.0,96448.0,0.001]
[1739293219287,0.155515,96454.0,96448.0,0.00122386]
[1739293219684,0.155518,96452.0,96448.0,0.00022386]
[1739293220602,0.207356,96453.0,96448.0,0.00022386]
[1739293220920,0.155521,96450.0,96448.0,0.00022386]
[1739293221121,0.155518,96452.0,96448.0,0.00022386]
[1739293221319,0.001,96454.0,96448.0,0.00022386]
[1739293221520,0.207324,96467.0,96448.0,0.00022386]
[1739293221723,0.155503,96461.0,96449.0,0.155522]
[1739293222086,0.001,96453.0,96452.0,0.155517]
[1739293222268,0.001,96453.0,96448.0,0.00022386]
[1739293222486,0.001,96453.0,96448.0,0.00122386]
[1739293222683,0.001,96453.0,96448.0,0.15574686]
[1739293223325,0.001,96453.0,96448.0,0.00022386]
[1739293223641,0.155514,96454.0,96448.0,0.00022386]
[1739293224048,0.0570206,96453.0,96448.0,0.00022386]
[1739293224308,0.155522,96449.0,96448.0,0.00022386]
[1739293224536,0.15,96470.0,96448.0,0.00022386]
[1739293224736,0.15552,96451.0,96448.0,0.00022386]
[1739293224864,0.003,96453.0,96448.0,0.00022386]
[1739293225059,0.001,96453.0,96451.0,0.155517]
[1739293225308,0.001,96453.0,96449.0,0.155521]
[1739293225510,0.207317,96471.0,96450.0,0.15552]
[1739293225712,0.155503,96461.0,96448.0,0.00022386]
[1739293225859,0.155503,96461.0,96452.0,0.155516]
[1739293226063,0.207326,96466.0,96448.0,0.00022386]
[1739293226263,0.207326,96466.0,96451.0,0.002]
[1739293226497,0.155505,96460.0,96451.0,0.157517]
[1739293226720,0.155505,96460.0,96450.0,0.207361]
[1739293226956,0.001,96453.0,96452.0,0.155516]
[1739293227265,0.001,96453.0,96452.0,0.11151599]
[1739293227463,0.155507,96459.0,96448.0,0.20758686]
[1739293227640,0.155507,96459.0,96451.0,0.155518]
[1739293228241,0.155513,96455.0,96448.0,0.00022386]
[1739293228441,0.0819,96468.0,96448.0,0.00022386]
[1739293228442,0.155518,96452.0,96448.0,0.00022386]
[1739293228646,0.156516,96453.0,96448.0,0.00022386]
[1739293228840,0.156516,96453.0,96451.0,0.001]
[1739293229045,0.156516,96453.0,96448.0,0.00022386]
[1739293229449,0.001,96453.0,96448.0,0.00222386]
[1739293229715,0.155514,96455.0,96448.0,0.00022386]
[1739293230080,0.207347,96457.0,96451.0,0.002]
[1739293230279,0.15551,96457.0,96451.0,0.002]
[1739293230453,0.155508,96458.0,96451.0,0.002]
[1739293230671,0.0819,96468.0,96451.0,0.002]
[1739293230672,0.207324,96467.0,96451.0,0.002]
[1739293230868,0.28998015,96491.0,96451.0,0.002]
[1739293230869,0.001,96455.0,96454.0,0.155514]
[1739293231078,0.001,96455.0,96454.0,0.25801765]
[1739293231278,0.27968,96476.0,96465.0,0.207327]
[1739293231478,0.0791,96476.0,96454.0,0.10250365]
[1739293231757,0.207288,96484.0,96460.0,0.207338]
[1739293231905,0.155479,96476.0,96461.0,0.10250365]
[1739293232106,0.155479,96476.0,96470.0,0.155487]
[1739293232351,0.155479,96476.0,96462.0,0.207335]
[1739293232550,0.207302,96478.0,96471.0,0.155486]
[1739293232874,0.003,96476.0,96471.0,0.155486]
[1739293233026,0.155477,96477.0,96471.0,0.155486]
[1739293233227,0.15548,96475.0,96468.0,0.207321]
[1739293233434,0.155491,96469.0,96442.0,0.15]
[1739293233655,0.001,96455.0,96454.0,0.027]
[1739293233971,0.001,96455.0,96454.0,0.33685465]
[1739293234167,0.207303,96477.0,96459.0,0.20734]
[1739293234400,0.155486,96472.0,96459.0,0.20734]
[1739293234533,0.155487,96471.0,96468.0,0.001]
[1739293234970,0.150487,96471.0,96463.0,0.155499]
[1739293235185,0.155487,96471.0,96463.0,0.155499]
[1739293235397,0.155488,96470.0,96463.0,0.155499]
[1739293235610,0.0001067,96480.0,96459.0,0.002]
[1739293235835,0.155497,96465.0,96459.0,0.002]
[1739293236031,0.207303,96477.0,96459.0,0.002]
[1739293236233,0.00129571,96476.0,96460.0,0.207339]
[1739293236451,0.207307,96476.0,96465.0,0.155496]
[1739293236820,0.0001067,96480.0,96454.0,0.10250365]
[1739293237036,0.0001067,96480.0,96470.0,0.155488]
[1739293237324,0.0001067,96480.0,96475.0,0.15548]
[1739293237421,0.0001067,96480.0,96458.0,0.023]
[1739293237638,0.155475,96479.0,96469.0,0.207318]
[1739293237843,0.0001067,96480.0,96464.0,0.207331]
[1739293238048,0.1575797,96480.0,96472.0,0.155484]
[1739293238254,0.0031067,96480.0,96465.0,0.10250365]
[1739293238453,0.0031067,96480.0,96445.0,0.207371]
[1739293238651,0.0021067,96480.0,96473.0,0.155482]
[1739293238980,0.0021067,96480.0,96453.0,0.023]
[1739293239176,0.0021067,96480.0,96463.0,0.023]
[1739293239522,0.0001067,96480.0,96477.0,0.155477]
[1739293239723,0.0011067,96480.0,96479.0,0.155474]
[1739293240485,0.0011067,96480.0,96478.0,0.155475]
[1739293240681,0.0011067,96480.0,96477.0,0.207301]
[1739293241004,0.0001067,96480.0,96478.0,0.155475]
[1739293241206,0.0001067,96480.0,96477.0,0.207301]
[1739293241207,0.0001067,96480.0,96477.0,0.155477]
[1739293241785,0.0001067,96480.0,96478.0,0.155475]
[1739293241989,0.0001067,96480.0,96479.0,0.155474]
[1739293242363,0.0001067,96480.0,96477.0,0.209302]
[1739293242566,0.0001067,96480.0,96479.0,0.155474]
[1739293242994,0.0011067,96480.0,96479.0,0.155474]
[1739293243518,0.0001067,96480.0,96477.0,0.157476]
[1739293243721,0.0011067,96480.0,96479.0,0.001]
[1739293244221,0.0011067,96480.0,96479.0,0.003]
[1739293244549,0.1555787,96480.0,96479.0,0.002]
[1739293244766,0.0752067,96480.0,96479.0,0.002]
[1739293244943,0.0001067,96480.0,96479.0,0.002]
[1739293246142,0.0001067,96480.0,96476.0,0.155478]
[1739293246351,0.0011067,96480.0,96477.0,0.156477]
[1739293246560,0.0011067,96480.0,96477.0,0.001]
[1739293246764,0.0001067,96480.0,96474.0,0.207309]
[1739293246967,0.0011067,96480.0,96479.0,0.001]
[1739293247401,0.0031067,96480.0,96470.0,0.207318]
[1739293247604,0.0001067,96480.0,96475.0,0.155479]
[1739293247743,0.0011067,96480.0,96477.0,0.001]
[1739293247944,0.0011067,96480.0,96477.0,0.156476]
[1739293248460,0.0011067,96480.0,96477.0,0.001]
[1739293248614,0.0011067,96480.0,96477.0,0.156476]
[1739293248836,0.0011067,96480.0,96479.0,0.155474]
[1739293249012,0.0011067,96480.0,96477.0,0.158476]
[1739293249236,0.0011067,96480.0,96478.0,0.155475]
[1739293249439,0.0011067,96480.0,96479.0,0.155474]
[1739293249637,0.0001067,96480.0,96479.0,0.155474]
[1739293249838,0.0011067,96480.0,96477.0,0.002]
[1739293250385,0.0001067,96480.0,96477.0,0.002]
[1739293250542,0.1555797,96480.0,96477.0,0.002]
[1739293250749,0.0011067,96480.0,96470.0,0.207316]
[1739293251108,0.0001067,96480.0,96470.0,0.207317]
[1739293251246,0.0001067,96480.0,96479.0,0.002]
[1739293251457,0.0011067,96480.0,96479.0,0.002]
[1739293251661,0.0011067,96480.0,96475.0,0.155479]
[1739293252239,0.0011067,96480.0,96476.0,0.155477]
[1739293252515,0.0011067,96480.0,96475.0,0.155479]
[1739293252673,0.0001067,96480.0,96475.0,0.155479]
[1739293252880,0.0001067,96480.0,96452.0,0.15]
[1739293253078,0.0011067,96480.0,96475.0,0.155479]
[1739293253419,0.0001067,96480.0,96475.0,0.155479]
[1739293253628,0.0001067,96480.0,96479.0,0.002]
[1739293253629,0.0011067,96480.0,96479.0,0.002]
[1739293253875,0.0011067,96480.0,96475.0,0.155479]
[1739293254024,0.0011067,96480.0,96476.0,0.155478]
[1739293254242,0.0011067,96480.0,96478.0,0.08270615]
[1739293254473,0.0001067,96480.0,96479.0,0.25797765]
[1739293254673,0.0001067,96480.0,96479.0,0.33697713]
[1739293254848,0.0011067,96480.0,96479.0,0.33897713]
[1739293255706,0.0011067,96480.0,96479.0,0.33697713]
[1739293255939,0.0011067,96480.0,96479.0,0.48697713]
[1739293256184,0.0001067,96480.0,96479.0,0.48697713]
[1739293256495,0.0001067,96480.0,96479.0,0.57137713]
[1739293256496,0.0011067,96480.0,96479.0,0.57137713]
[1739293256901,0.0001067,96480.0,96479.0,0.58890614]
[1739293257127,0.0011067,96480.0,96479.0,0.59190614]
[1739293257327,0.00095318,96480.0,96479.0,0.59190614]
[1739293257547,0.155411,96518.0,96479.0,0.43343214]
[1739293257751,0.00055179,96509.0,96490.0,0.14411036]
[1739293257944,0.00051179,96509.0,96502.0,0.155435]
[1739293258268,0.00051179,96509.0,96500.0,0.155439]
[1739293258474,0.00051179,96509.0,96500.0,0.10250365]
[1739293259441,0.00151179,96509.0,96500.0,0.10550365]
[1739293259862,0.00051179,96509.0,96500.0,0.10550365]
[1739293260107,0.00051179,96509.0,96506.0,0.207239]
[1739293260317,0.00151179,96509.0,96507.0,0.155429]
[1739293260517,0.00151179,96509.0,96508.0,0.155427]
[1739293261060,0.00051179,96509.0,96508.0,0.25793065]
[1739293262030,0.155384,96535.0,96508.0,0.28475456]
[1739293262237,0.00024005,96510.0,96509.0,0.44017956]
[1739293262353,0.00024005,96510.0,96509.0,0.25792865]
[1739293262564,0.00024005,96510.0,96509.0,0.29016709]
[1739293263313,0.00024005,96510.0,96509.0,0.25792865]
[1739293263638,0.00024005,96510.0,96509.0,0.29015889]
[1739293263962,0.00124005,96510.0,96509.0,0.30015889]
[1739293264302,0.00124005,96510.0,96509.0,0.26792865]
[1739293264507,0.00124005,96510.0,96509.0,0.27292865]
[1739293264980,0.00124005,96510.0,96509.0,0.29360969]
[1739293267135,0.00124005,96510.0,96509.0,0.015]
[1739293267329,0.00124005,96510.0,96509.0,0.12642499]
[1739293268293,0.00124005,96510.0,96508.0,0.155427]
[1739293268613,0.00124005,96510.0,96504.0,0.02054824]
[1739293268814,0.15666405,96510.0,96490.0,0.207274]
[1739293269043,0.15666405,96510.0,96485.0,0.00784]
[1739293269044,0.155425,96509.0,96508.0,0.00022386]
[1739293269195,0.00253523,96510.0,96508.0,0.00022386]
[1739293269196,0.00024005,96510.0,96508.0,0.00022386]
[1739293269588,0.00124005,96510.0,96508.0,0.15665086]
[1739293269792,0.01124005,96510.0,96508.0,0.00122386]
[1739293269994,0.01124005,96510.0,96509.0,0.155425]
[1739293270412,0.01024005,96510.0,96509.0,0.155425]
[1739293270603,0.5329066,96525.0,96508.0,0.00522386]
[1739293270831,0.155425,96509.0,96508.0,0.00522386]
[1739293271034,0.20462028,96509.0,96508.0,0.00022386]
[1739293271230,0.78142865,96509.0,96508.0,0.00022386]
[1739293272247,0.64900365,96509.0,96479.0,0.03893]
[1739293272447,0.15,96505.0,96479.0,0.03893]
[1739293272668,0.10379922,96504.0,96479.0,0.03893]
[1739293272867,0.155463,96486.0,96479.0,0.03893]
[1739293273347,0.155462,96487.0,96475.0,0.155479]
[1739293273529,0.155464,96486.0,96474.0,0.155481]
[1739293273731,0.155465,96485.0,96474.0,0.155481]
[1739293273931,0.289971,96492.0,96471.0,0.00022386]
[1739293273932,0.155475,96479.0,96471.0,0.00022386]
[1739293274136,0.20856859,96491.0,96474.0,0.00044519]
[1739293274358,0.00129559,96491.0,96474.0,0.00044519]
[1739293274576,0.155471,96482.0,96475.0,0.002]
[1739293274967,0.155471,96482.0,96474.0,0.00044519]
[1739293275212,0.207289,96484.0,96474.0,0.00044519]
[1739293275213,0.30548,96475.0,96474.0,0.00044519]
[1739293275360,0.40798365,96475.0,96474.0,0.00044519]
[1739293275602,0.40798365,96475.0,96474.0,0.00144519]
[1739293276009,0.42072655,96475.0,96474.0,0.00044519]
[1739293276866,0.43472655,96475.0,96474.0,0.00044519]
[1739293277314,0.15,96474.0,96445.0,0.03959905]
[1739293277632,0.207314,96472.0,96445.0,0.0397325]
[1739293277833,0.155512,96456.0,96445.0,0.0397325]
[1739293278034,0.155509,96457.0,96445.0,0.0397325]
[1739293278237,0.00129594,96471.0,96445.0,0.0397325]
[1739293278238,0.00129594,96455.0,96445.0,0.00013345]
[1739293278451,0.20735,96455.0,96445.0,0.00013345]
[1739293278653,0.155527,96446.0,96445.0,0.00013345]
[1739293278866,0.00129608,96464.0,96445.0,0.00013345]
[1739293279071,0.10250365,96463.0,96445.0,0.00013345]
[1739293279218,0.155524,96449.0,96445.0,0.00013345]
[1739293279420,0.00129608,96448.0,96445.0,0.00013345]
[1739293280027,0.001,96446.0,96445.0,0.00013345]
[1739293280583,0.001,96446.0,96445.0,0.00135731]
[1739293281254,0.156527,96446.0,96445.0,0.00135731]
[1739293281482,0.156527,96446.0,96445.0,0.00035731]
[1739293281483,0.15682322,96446.0,96445.0,0.00035731]
[1739293281680,0.155527,96446.0,96445.0,0.00035731]
[1739293281857,0.15682325,96446.0,96445.0,0.00035731]
[1739293282242,0.2593269,96446.0,96445.0,0.00035731]
[1739293282443,0.155546,96435.0,96421.0,0.03951138]
[1739293282666,0.207376,96443.0,96421.0,0.03964482]
[1739293282869,0.155548,96433.0,96421.0,0.00013344]
[1739293283070,0.155543,96436.0,96421.0,0.00013344]
[1739293283277,0.10250365,96442.0,96421.0,0.00013344]
[1739293283576,0.155547,96434.0,96421.0,0.15570044]
[1739293284316,0.10250365,96442.0,96421.0,0.00013344]
[1739293284456,0.15555,96432.0,96421.0,0.00013344]
[1739293284670,0.3256,96444.0,96421.0,0.00013344]
[1739293284853,0.00129628,96443.0,96422.0,0.207421]
[1739293285061,0.00129628,96443.0,96424.0,0.155561]
[1739293285463,0.155541,96438.0,96424.0,0.155561]
[1739293285663,0.155539,96439.0,96425.0,0.15556]
[1739293285913,0.001,96435.0,96424.0,0.155562]
[1739293286108,0.001,96435.0,96421.0,0.00013344]
[1739293286290,0.00129628,96440.0,96425.0,0.155561]
[1739293286490,0.00129628,96440.0,96422.0,0.207421]
[1739293286713,0.15554,96439.0,96425.0,0.155561]
[1739293286953,0.00129623,96438.0,96421.0,0.10263709]
[1739293287127,0.155542,96437.0,96422.0,0.155565]
[1739293287344,0.00129624,96436.0,96421.0,0.10463709]
[1739293287561,0.155537,96440.0,96422.0,0.155566]
[1739293287749,0.00129624,96439.0,96421.0,0.10263709]
[1739293287952,0.00129624,96439.0,96422.0,0.001]
[1739293288157,0.15683524,96439.0,96425.0,0.155561]
[1739293289462,0.00129624,96439.0,96425.0,0.15556]
[1739293289640,0.15683524,96439.0,96425.0,0.15556]
[1739293290185,0.15783524,96439.0,96425.0,0.15556]
[1739293290324,0.15783524,96439.0,96421.0,0.15770044]
[1739293290325,0.362927,96438.0,96421.0,0.15770044]
[1739293290527,0.00129628,96437.0,96421.0,0.00213344]
[1739293290731,0.155544,96436.0,96422.0,0.155565]
[1739293290939,0.00129628,96435.0,96422.0,0.155565]
[1739293291143,0.155553,96430.0,96421.0,0.00213344]
[1739293291349,0.155566,96422.0,96421.0,0.00213344]
[1739293291555,0.1568624,96422.0,96421.0,0.00213344]
[1739293291748,0.25936605,96422.0,96421.0,0.00213344]
[1739293291951,0.31790753,96422.0,96421.0,0.00213344]
[1739293292148,0.42041118,96422.0,96421.0,0.00213344]
[1739293292352,0.207429,96419.0,96405.0,0.05957271]
[1739293292686,0.155591,96406.0,96405.0,0.05957271]
[1739293292887,0.23818772,96406.0,96405.0,0.06056448]
[1739293293064,0.15559,96407.0,96405.0,0.06056448]
[1739293293302,0.5379,96409.0,96405.0,0.06056448]
[1739293293851,0.693487,96409.0,96405.0,0.06056448]
[1739293294051,0.5379,96409.0,96405.0,0.06056448]
[1739293294260,0.693487,96409.0,96405.0,0.06056448]
[1739293294468,0.5379,96409.0,96405.0,0.06056448]
[1739293294683,0.155591,96406.0,96405.0,0.06056448]
[1739293294886,0.5379,96409.0,96405.0,0.06056448]
[1739293295373,0.155591,96406.0,96405.0,0.06056448]
[1739293295576,0.15258831,96406.0,96405.0,0.06056448]
[1739293295963,0.15058831,96406.0,96405.0,0.06056448]
[1739293296162,0.25409196,96406.0,96405.0,0.06056448]
[1739293296407,0.001,96406.0,96405.0,0.06056448]
[1739293296717,0.156591,96406.0,96405.0,0.06056448]
[1739293296931,0.001,96406.0,96405.0,0.06056448]
[1739293297122,0.156591,96406.0,96405.0,0.06056448]
[1739293297345,0.157591,96406.0,96405.0,0.01656447]
[1739293297712,0.002,96406.0,96405.0,0.01656447]
[1739293298079,0.15034427,96406.0,96405.0,0.01656447]
[1739293298754,0.15863864,96406.0,96405.0,0.01656447]
[1739293298951,0.18720878,96406.0,96405.0,0.01656447]
[1739293299278,0.15163864,96406.0,96405.0,0.01656447]
[1739293299433,0.17891441,96406.0,96405.0,0.01656447]
[1739293299633,0.18091441,96406.0,96405.0,0.01656447]
[1739293299837,0.15363864,96406.0,96405.0,0.01656447]
[1739293300034,0.18020878,96406.0,96405.0,0.01656447]
[1739293300235,0.34347796,96406.0,96405.0,0.01656447]
[1739293300459,0.31961345,96406.0,96405.0,0.01656447]
[1739293300660,0.25884792,96406.0,96405.0,0.01656447]
[1739293300862,0.25984792,96406.0,96405.0,0.01656447]
[1739293301068,0.25784646,96406.0,96405.0,0.01656447]
[1739293301436,0.28602543,96406.0,96405.0,0.01656447]
[1739293301632,0.25745529,96406.0,96405.0,0.01656447]
[1739293301854,0.28602543,96406.0,96405.0,0.01656447]
[1739293302028,0.25745529,96406.0,96405.0,0.01656447]
[1739293302366,0.155598,96402.0,96400.0,0.01782503]
[1739293302537,0.00129437,96401.0,96400.0,0.01782503]
[1739293302959,0.02986451,96401.0,96400.0,0.01782503]
[1739293303189,0.25810165,96402.0,96400.0,0.01782503]
[1739293303411,0.10250365,96401.0,96400.0,0.01782503]
[1739293304060,0.01902921,96406.0,96400.0,0.01782503]
[1739293304243,0.01902921,96401.0,96400.0,0.01782503]
[1739293304371,0.01902921,96401.0,96400.0,0.0499599]
[1739293304998,0.02302921,96401.0,96400.0,0.0499599]
[1739293305402,0.17862921,96401.0,96400.0,0.0499599]
[1739293305607,0.1596,96401.0,96400.0,0.0499599]
[1739293306050,0.004,96401.0,96400.0,0.0499599]
[1739293306800,0.02302921,96401.0,96400.0,0.0499599]
[1739293307130,0.02302921,96401.0,96400.0,0.05018397]
[1739293307359,0.02302921,96401.0,96400.0,0.00618396]
[1739293308342,0.05354808,96401.0,96400.0,0.00618396]
[1739293309178,0.05354808,96401.0,96400.0,0.08588396]
[1739293309372,0.05354808,96401.0,96400.0,0.1893794]
[1739293309639,0.004,96401.0,96400.0,0.1893794]
[1739293309946,0.004,96401.0,96400.0,0.08687575]
[1739293310150,0.004,96401.0,96400.0,0.00717575]
[1739293310503,0.004,96401.0,96400.0,0.00618396]
[1739293310701,0.02302921,96401.0,96400.0,0.00618396]
[1739293310931,0.01902921,96401.0,96400.0,0.00618396]
[1739293311327,0.02002921,96401.0,96400.0,0.00718396]
[1739293311708,0.02002921,96401.0,96400.0,0.00817575]
[1739293312333,0.02002921,96401.0,96399.0,0.11977774]
[1739293313135,0.02002921,96401.0,96400.0,0.10250365]
[1739293313343,0.00013331,96422.0,96414.0,0.155578]
[1739293313546,0.00013331,96422.0,96415.0,0.18783048]
[1739293313792,0.00013331,96422.0,96416.0,0.03225448]
[1739293313995,0.00013331,96422.0,96417.0,0.03225448]
[1739293314307,0.155569,96420.0,96418.0,0.03225448]
[1739293314529,0.15570031,96422.0,96419.0,0.03225448]
[1739293314732,0.00013331,96422.0,96420.0,0.03225448]
[1739293314873,0.15569931,96422.0,96421.0,0.03225448]
[1739293315070,0.16069931,96422.0,96421.0,0.03225448]
[1739293315502,0.15569931,96422.0,96421.0,0.03225448]
[1739293315864,0.16069931,96422.0,96421.0,0.03225448]
[1739293317253,0.82595878,96422.0,96421.0,0.03225448]
[1739293317455,0.87915878,96422.0,96421.0,0.03325448]
[1739293317873,0.69373696,96422.0,96397.0,0.00775447]
[1739293318094,0.5379,96421.0,96398.0,0.24076192]
[1739293318299,0.207436,96415.0,96399.0,0.03229829]
[1739293318503,0.207436,96415.0,96400.0,0.18789829]
[1739293318679,0.00013331,96422.0,96406.0,0.15559]
[1739293318912,0.16869931,96422.0,96421.0,0.001]
[1739293319245,0.16869931,96422.0,96421.0,0.03329829]
[1739293319460,0.17169931,96422.0,96421.0,0.03329829]
[1739293320457,0.17169931,96422.0,96421.0,0.03229829]
[1739293320458,0.00013331,96422.0,96421.0,0.03229829]
[1739293320727,0.15769931,96422.0,96421.0,0.03229829]